Cogmind - Beta 13 --- EXPLORER MODE // 2024.06.09 @ 15:42:37 Player: Blade Result: Self-destructed Performance ------------- Evolutions (8) 4000 Regions Visited (13) 2600 Robots Destroyed (28) 140 Value Destroyed (1206) 1206 Prototype IDs (9) 180 Alien Tech Used (8) 1600 Bonus (3000) 3000 TOTAL SCORE: 12726 Bonus ------- Used Core Reset Matrix 3000 Cogmind --------- Core Integrity 558/1450 Matter 165/300 Energy 35/100 System Corruption 7% Temperature Cool (82) Movement Core (400) Ox7 Location -2/Section 7 Parts ------- > --- POWER (2) -------- (None) > --- PROPULSION (10) -- (None) > --- UTILITY (12) ----- Experimental Optical Array Advanced Signal Interpreter Advanced System Shield > --- WEAPON (2) ------- Sigix Shearcannon > --- INVENTORY (9) ---- Micro Antimatter Reactor Experimental EM Disruption Field Drone Bay (1/2) Transdimensional Reconstructor Transdimensional Reconstructor Transdimensional Reconstructor Terrabomb Sigix Sheargun Peak State ------------ > --- POWER ------------ Micro Fission Core Light Quantum Reactor > --- PROPULSION ------- Improved VTOL Module Xenon Bombardment Thruster Xenon Bombardment Thruster Xenon Bombardment Thruster Impulse Thruster Impulse Thruster Q-thruster Q-thruster > --- UTILITY ---------- Advanced Cryofiber Web Advanced Heat Sink Medium Storage Unit Experimental Optical Array Advanced Sensor Array Advanced Signal Interpreter Advanced Terrain Scan Processor Advanced Transmission Jammer Reaction Control System Advanced Hacking Suite Advanced System Shield > --- WEAPON ----------- Advanced Remote Datajack Enhanced Force Lance > --- INVENTORY -------- Light Particle Reactor Micro Antimatter Reactor Micro Antimatter Reactor Improved VTOL Module Nuclear Pulse Thruster Nuclear Pulse Thruster Experimental EM Disruption Field Drone Bay Transdimensional Reconstructor Grenade Launcher [Rating: 140] Favorites ----------- Power Micro Fission Core Engine Light Ion Engine Power Core Micro Fission Core Reactor Light Quantum Reactor Propulsion Xenon Bombardment Thruster Treads Light Treads Leg Aluminum Leg Flight Unit Xenon Bombardment Thruster Utility Medium Storage Unit Device Advanced Sensor Array Storage Medium Storage Unit Processor Advanced Terrain Scan Processor Hackware Advanced Hacking Suite Protection Weapon Shielding Weapon Enhanced Force Lance Energy Gun Beam Rifle Energy Cannon Sigix Shearcannon Ballistic Gun Heavy Assault Rifle Ballistic Cannon Gauss Cannon Launcher Rocket Array Special Weapon Advanced Remote Datajack Slashing Weapon Greatsword Piercing Weapon Enhanced Force Lance Build | -11 -10 -10 -10 -9 -8 -7 -6 -5 -4 -3 -2 -2 -2 ------- Run | Yrd Mat Min Exi Min Mat Fac Fac Fac Fac Res Res Qua Sec Slots Evolved 17 | . 1 . . . 4 2 2 2 2 2 2 . . Power 1 | . . . . . . . . . 1 . . . . Propulsion 6 | . 1 . . . 2 . 2 . . . 1 . . Utility 10 | . . . . . 2 2 . 2 1 2 1 . . Weapon . | . . . . . . . . . . . . . . Parts Attached 106 | . 7 2 . . 18 14 8 2 6 21 7 8 13 Power 19 | . 1 . . . 1 1 3 . 1 5 1 1 5 Engine 2 | . 1 . . . 1 . . . . . . . . Core 9 | . . . . . . 1 3 . 1 2 . 1 1 Reactor 8 | . . . . . . . . . . 3 1 . 4 Propulsion 35 | . 4 1 . . 9 3 2 . 2 6 2 3 3 Treads 3 | . . . . . 3 . . . . . . . . Leg 6 | . 4 1 . . 1 . . . . . . . . Wheel . | . . . . . . . . . . . . . . Hover . | . . . . . . . . . . . . . . Flight 26 | . . . . . 5 3 2 . 2 6 2 3 3 Utility 29 | . . . . . 2 5 3 2 3 7 4 2 1 Device 19 | . . . . . . 3 2 1 1 6 3 2 1 Storage . | . . . . . . . . . . . . . . Processor 7 | . . . . . 1 2 1 . 2 1 . . . Hackware 2 | . . . . . . . . 1 . . 1 . . Protection 1 | . . . . . 1 . . . . . . . . Artifact . | . . . . . . . . . . . . . . Weapon 23 | . 2 1 . . 6 5 . . . 3 . 2 4 Energy Gun 7 | . 2 1 . . 3 . . . . . . . 1 Energy Cannon 2 | . . . . . . . . . . . . . 2 Ballistic Gun 1 | . . . . . 1 . . . . . . . . Ballistic Cannon 2 | . . . . . . 2 . . . . . . . Launcher 5 | . . . . . 2 1 . . . 1 . . 1 Special Weapon 1 | . . . . . . . . . . . . 1 . Impact Weapon . | . . . . . . . . . . . . . . Slashing Weapon 3 | . . . . . . 2 . . . 1 . . . Piercing Weapon 2 | . . . . . . . . . . 1 . 1 . Special Melee Weapon . | . . . . . . . . . . . . . . Unidentified Prototypes 10 | . . . . . 4 1 . . 2 2 . 1 . Parts Lost 27 | . . . . . . . . . . 3 3 . 21 Power 3 | . . . . . . . . . . 1 . . 2 Propulsion 13 | . . . . . . . . . . 2 1 . 10 Utility 9 | . . . . . . . . . . . 2 . 7 Weapon 2 | . . . . . . . . . . . . . 2 Highest Loss Streak 9 | . . . . . . . . . . 3 3 . 9 To Critical Strikes . | . . . . . . . . . . . . . . Average Slot Usage (%) 84 | . 84 91 100 100 80 79 92 86 89 85 88 90 66 Engine 3 | . 12 12 12 12 8 2 . . . . . . . Core 3 | . . . . . . 4 6 5 10 5 4 3 2 Reactor 1 | . . . . . . . . . . 2 4 4 2 Leg 8 | . 29 37 37 37 19 . . . . . . . . Flight 22 | . . . . . 5 34 43 38 35 30 33 31 20 Device 10 | . . . . . . 5 11 11 10 16 21 22 15 Storage 6 | . 12 12 12 12 8 7 6 5 5 4 4 4 2 Processor 10 | . . . . . 5 19 18 16 19 14 12 12 10 Hackware 2 | . . . . . . . . 3 5 4 4 8 6 Protection 3 | . 12 12 12 12 12 . . . . . . . . Energy Gun 4 | . 14 16 25 25 9 . . . . . . . . Slashing Weapon 1 | . . . . . . 4 6 5 5 1 . . . Piercing Weapon 1 | . . . . . . . . . . 1 4 4 2 Naked Turns . | . . . . . . . . . . . . . . Heaviest Build 45 | 16 20 18 18 18 24 23 30 25 34 43 45 45 44 Greatest Support 53 | 20 30 30 30 30 43 26 36 36 40 46 53 53 45 Greatest Overweight (x) 4 | . 1 . . . 4 . . . . . . 1 1 Average Overweight (x) . | . . . . . . . . . . . . . . Largest Inventory Capacity 14 | . 10 10 10 10 10 10 10 10 10 10 10 10 14 Average Capacity 10 | . 10 10 10 10 10 10 10 10 10 10 10 10 10 Most Carried 10 | . 10 10 10 10 10 10 10 10 10 10 9 10 10 Average Carried 9 | . 8 9 10 9 10 9 9 9 9 9 8 9 8 Final Capacity 10 | 10 10 10 10 10 10 10 10 10 10 10 10 10 9 Final Carried 10 | 7 10 10 10 10 10 10 10 10 10 10 8 10 8 Class Distribution -------------------- 44% | Hacker-Scout 30% | Hacker-Mutant 16% | Hacker-Ninja 3% | Hacker-Sprinter 3% | Alien-Mutant Dominant Class ---------------- Hacker-Mutant | -10/Materials Hacker-Mutant | -10/Mines Hacker-Mutant | -10/Exiles Hacker-Mutant | -9/Mines Hacker-Mutant | -8/Materials Hacker-Scout | -7/Factory Hacker-Scout | -6/Factory Hacker-Scout | -5/Factory Hacker-Scout | -4/Factory Hacker-Scout | -3/Research Hacker-Scout | -2/Research Hacker-Ninja | -2/Quarantine Hacker-Ninja | -2/Section 7 Resources | -11 -10 -10 -10 -9 -8 -7 -6 -5 -4 -3 -2 -2 -2 ----------- Run | Yrd Mat Min Exi Min Mat Fac Fac Fac Fac Res Res Qua Sec Matter Collected 1166 | 200 77 10 . 10 101 111 . 148 93 85 88 128 115 Remotely . | . . . . . . . . . . . . . . Salvage Created 1301 | . 90 44 . . 270 110 107 148 . 317 33 . 182 Parts 78 | . 3 1 . . 16 7 . 9 . 24 4 . 14 Haulers Intercepted 1 | . 1 . . . . . . . . . . . . Recyclers Shooed . | . . . . . . . . . . . . . . Parts Field Recycled . | . . . . . . . . . . . . . . Retrieved Matter . | . . . . . . . . . . . . . . Parts Self-Destructed . | . . . . . . . . . . . . . . Prevented . | . . . . . . . . . . . . . . Kills | -11 -10 -10 -10 -9 -8 -7 -6 -5 -4 -3 -2 -2 -2 ------- Run | Yrd Mat Min Exi Min Mat Fac Fac Fac Fac Res Res Qua Sec Combat Hostiles Destroyed 16 | . 2 1 . . 4 . . 2 . 4 . . 3 Melee 8 | . . . . . . . . 2 . 4 . . 2 Guns 7 | . 2 1 . . 4 . . . . . . . . Cannons 1 | . . . . . . . . . . . . . 1 Classes Destroyed 11 | . 2 1 . . 4 1 . 1 . . . . 2 Worker 1 | . . . . . 1 . . . . . . . . Hauler 1 | . 1 . . . . . . . . . . . . Recycler 2 | . . . . . . 1 1 . . . . . . Operator 1 | . . . . . . . . . . . . . 1 Watcher 7 | . . . . . 1 1 . 1 . 3 1 . . Swarmer 4 | . 2 . . . . . . . . 2 . . . Grunt 1 | . . 1 . . . . . . . . . . . Duelist 1 | . . . . . 1 . . . . . . . . Sentry 3 | . . . . . 3 . . . . . . . . Programmer 6 | . . . . . . . . 2 . 2 . . 2 Striker 1 | . . . . . . . . . . . . . 1 Best Kill Streak 5 | . 2 1 . . 2 2 1 3 . 5 1 . 1 Combat Bots Only 2 | . 2 1 . . 1 . . 2 . 2 . . 1 Max Kills in Single Turn 2 | . 1 1 . . 1 2 1 1 . 1 1 . 1 Gunslinging . | . . . . . . . . . . . . . . Exploded . | . . . . . . . . . . . . . . Melee 1 | . . . . . . . . 1 . 1 . . 1 Uniques/NPCs Destroyed . | . . . . . . . . . . . . . . Combat | -11 -10 -10 -10 -9 -8 -7 -6 -5 -4 -3 -2 -2 -2 -------- Run | Yrd Mat Min Exi Min Mat Fac Fac Fac Fac Res Res Qua Sec Hostile Shots Fired 375 | . 17 5 . . 27 24 . 20 18 18 35 6 205 Missed 146 | . 6 . . . 3 18 . 6 8 4 18 4 79 Damage Taken 3378 | . 49 41 . . 327 77 . 184 157 204 260 40 2039 Core 1014 | . . . . . 39 . . 14 39 30 46 . 846 Absorbed by Shields 63 | . . . . . . . . . . . . . 63 Redirected to Shielding 37 | . 4 4 . . 29 . . . . . . . . Ignored by Resistances 1964 | . 37 25 . . 195 46 . 109 93 121 152 22 1164 Core Remaining (%) 97 | 100 . . . 100 92 100 100 98 96 97 . . . Volleys Fired 50 | . 11 5 . . 23 2 . . . . . . 9 Largest 2 | . 2 2 . . 2 1 . . . . . . 1 Hottest 180 | . 60 96 . . 80 48 . . . . . . 180 Shots Fired 83 | . 18 8 . . 46 2 . . . . . . 9 Gun 76 | . 18 8 . . 46 . . . . . . . 4 Cannon 4 | . . . . . . 2 . . . . . . 2 Launcher 3 | . . . . . . . . . . . . . 3 Special . | . . . . . . . . . . . . . . Kinetic 18 | . 7 . . . 9 2 . . . . . . . Thermal 56 | . 11 8 . . 37 . . . . . . . . Explosive 3 | . . . . . . . . . . . . . 3 Electromagnetic . | . . . . . . . . . . . . . . Slashing 6 | . . . . . . . . . . . . . 6 Robot Hit Streak 17 | . 16 6 . . 17 1 . . . . . . 14 Robot Miss Streak 2 | . 1 2 . . 1 1 . . . . . . 2 Penetration Max 1 | . . . . . . 1 . . . . . . . Secondary Targets . | . . . . . . . . . . . . . . Shots Hit Robots 107 | . 16 6 . . 38 1 3 10 . 12 1 . 20 Core Hits 44 | . 5 2 . . 11 2 1 2 . 7 1 . 13 Critical Kills . | . . . . . . . . . . . . . . Critical Parts Destroyed . | . . . . . . . . . . . . . . Critical Strikes 8 | . . 2 . . . . . 1 . 2 1 . 2 Burn 2 | . . 2 . . . . . . . . . . . Sever 4 | . . . . . . . . 1 . 2 . . 1 Impale 2 | . . . . . . . . . . . 1 . 1 Melee Attacks 77 | . . . . . . . 3 14 1 18 21 1 19 Impact . | . . . . . . . . . . . . . . Slashing 31 | . . . . . . . 3 14 1 13 . . . Piercing 46 | . . . . . . . . . . 5 21 1 19 Sneak Attacks 3 | . . . . . . . 1 1 . 1 . . . Combat Hostiles . | . . . . . . . . . . . . . . Follow-up Attacks . | . . . . . . . . . . . . . . Damage Inflicted 3493 | . 174 87 . . 504 58 242 618 . 765 50 . 995 Guns 851 | . 174 79 . . 504 . . . . . . . 94 Cannons 202 | . . . . . . 58 . . . . . . 144 Explosions 159 | . . . . . . . . . . . . . 159 Melee 2273 | . . . . . . . 242 618 . 765 50 . 598 Ramming 8 | . . 8 . . . . . . . . . . . Kinetic 195 | . 52 . . . 85 58 . . . . . . . Thermal 620 | . 122 79 . . 419 . . . . . . . . Explosive 159 | . . . . . . . . . . . . . 159 Electromagnetic . | . . . . . . . . . . . . . . Impact . | . . . . . . . . . . . . . . Slashing 1772 | . . . . . . . 242 618 . 674 . . 238 Piercing 739 | . . . . . . . . . . 91 50 . 598 Highest Corruption 7 | . . . . . 5 . . 1 1 . . . 7 Average Corruption 3 | . . . . . 5 . . 1 1 . . . 5 Corruption Purged . | . . . . . . . . . . . . . . Corruption Blocked . | . . . . . . . . . . . . . . Effects 3 | . . . . . . . . . . . . . 3 Message Errors 1 | . . . . . . . . . . . . . 1 Matter Fused 1 | . . . . . . . . . . . . . 1 Parts Rejected 1 | . . . . . . . . . . . . . 1 Overload Shots . | . . . . . . . . . . . . . . Overflow Damage 326 | . . . . . . . 20 143 . 78 . . 85 Projectiles . | . . . . . . . . . . . . . . Explosions 14 | . . . . . . . . . . . . . 14 Melee 312 | . . . . . . . 20 143 . 78 . . 71 Knockbacks . | . . . . . . . . . . . . . . Impact . | . . . . . . . . . . . . . . Kinetic . | . . . . . . . . . . . . . . Secondary . | . . . . . . . . . . . . . . Self-Inflicted Damage 72 | . . . . . . . . . . . . . 72 Shots 3 | . . . . . . . . . . . . . 3 Rammed . | . . . . . . . . . . . . . . Targets Rammed 1 | . . 1 . . . . . . . . . . . Kicked 1 | . . 1 . . . . . . . . . . . Crushed . | . . . . . . . . . . . . . . Highest Temperature 328 | . 64 136 . . 27 23 149 268 311 258 . . 328 Average Temperature 75 | . 27 72 . . 14 3 56 100 144 50 . . 147 Received Heat Transfer 255 | . . 36 . . 63 6 . . 9 . 9 18 114 Effects 8 | . . . . . . . . 1 3 1 . . 3 Energy Bleed 1 | . . . . . . . . 1 . . . . . Interference 7 | . . . . . . . . . 3 1 . . 3 Siege Activations . | . . . . . . . . . . . . . . Robots Corrupted . | . . . . . . . . . . . . . . Combat Hostiles . | . . . . . . . . . . . . . . Parts Fried . | . . . . . . . . . . . . . . Impact Corruptions . | . . . . . . . . . . . . . . Robots Melted . | . . . . . . . . . . . . . . Combat Hostiles . | . . . . . . . . . . . . . . Parts Melted 3 | . 1 . . . 2 . . . . . . . . Heat Transferred 1553 | . 298 334 . . 921 . . . . . . . . Parts Sabotaged . | . . . . . . . . . . . . . . Parts Stolen . | . . . . . . . . . . . . . . Parts Stripped . | . . . . . . . . . . . . . . Power Chain Reactions . | . . . . . . . . . . . . . . Alert | -11 -10 -10 -10 -9 -8 -7 -6 -5 -4 -3 -2 -2 -2 ------- Run | Yrd Mat Min Exi Min Mat Fac Fac Fac Fac Res Res Qua Sec Peak Influence 380 | . 57 50 . . 132 277 114 186 347 244 380 160 189 Initial 160 | . . 15 . . . 15 99 40 66 135 29 160 39 Average 91 | . 45 24 . . 81 132 103 107 180 59 149 109 104 Maximum Alert Level 1 | . . . . . . 1 . . 1 1 1 . . Low Security (%) 92 | . 100 100 . 100 100 78 100 100 56 86 73 100 100 Level 1 7 | . . . . . . 21 . . 43 13 26 . . Level 2 . | . . . . . . . . . . . . . . Level 3 . | . . . . . . . . . . . . . . Level 4 . | . . . . . . . . . . . . . . Level 5 . | . . . . . . . . . . . . . . High Security . | . . . . . . . . . . . . . . Max Security . | . . . . . . . . . . . . . . Squads Dispatched 12 | . . . . . . 4 . . 1 3 1 1 2 Investigation 3 | . . . . . . 1 . . . 1 . 1 . Extermination 3 | . . . . . . 1 . . . 1 . . 1 Reinforcement 6 | . . . . . . 2 . . 1 1 1 . 1 Assault . | . . . . . . . . . . . . . . Garrison . | . . . . . . . . . . . . . . Intercept . | . . . . . . . . . . . . . . Searches Triggered . | . . . . . . . . . . . . . . Construction Impeded . | . . . . . . . . . . . . . . Haulers Reinforced . | . . . . . . . . . . . . . . Active Scanning Responses . | . . . . . . . . . . . . . . Cargo Convoy Interrupts . | . . . . . . . . . . . . . . Stealth | -11 -10 -10 -10 -9 -8 -7 -6 -5 -4 -3 -2 -2 -2 --------- Run | Yrd Mat Min Exi Min Mat Fac Fac Fac Fac Res Res Qua Sec Distress Signals 4 | . . . . . 3 . . . . 1 . . . Communications Jammed 17 | . . . . . . . . . . . 1 2 14 Distress Signals 17 | . . . . . . . . . . . 1 2 14 Times Spotted 128 | . 3 2 . . 10 14 . 7 17 18 18 9 30 Peak Tracking Total 12 | . 2 2 . . 3 6 . 5 9 8 9 9 12 Tactical Retreats 22 | . . 1 . . 1 3 . 1 3 3 4 1 5 Traps | -11 -10 -10 -10 -9 -8 -7 -6 -5 -4 -3 -2 -2 -2 ------- Run | Yrd Mat Min Exi Min Mat Fac Fac Fac Fac Res Res Qua Sec Traps Triggered 14 | . 3 . . . . 1 . . 1 2 1 3 3 Indirectly . | . . . . . . . . . . . . . . Trap Hack Attempts . | . . . . . . . . . . . . . . Triggered . | . . . . . . . . . . . . . . Disarmed . | . . . . . . . . . . . . . . Reprogrammed . | . . . . . . . . . . . . . . Reused . | . . . . . . . . . . . . . . Traps Extracted . | . . . . . . . . . . . . . . Installed . | . . . . . . . . . . . . . . Triggered . | . . . . . . . . . . . . . . Machines | -11 -10 -10 -10 -9 -8 -7 -6 -5 -4 -3 -2 -2 -2 ---------- Run | Yrd Mat Min Exi Min Mat Fac Fac Fac Fac Res Res Qua Sec Machines Disabled 3 | . . . . . . . . . . . 1 . 2 Max in Single Turn 1 | . . . . . . . . . . . 1 . 1 Garrison Access 2 | . . . . . . . . . . 1 . . 1 Machines Repaired . | . . . . . . . . . . . . . . Machines Dismantled . | . . . . . . . . . . . . . . Machines Sabotaged . | . . . . . . . . . . . . . . Overloaded Fab Kills . | . . . . . . . . . . . . . . Hacking | -11 -10 -10 -10 -9 -8 -7 -6 -5 -4 -3 -2 -2 -2 --------- Run | Yrd Mat Min Exi Min Mat Fac Fac Fac Fac Res Res Qua Sec Machines Accessed 36 | . . 1 1 . 2 6 2 2 3 6 1 3 9 Terminals 30 | . . 1 . . 2 3 2 2 3 5 1 3 8 Fabricators . | . . . . . . . . . . . . . . Repair Stations 2 | . . . . . . 2 . . . . . . . Recycling Units . | . . . . . . . . . . . . . . Scanalyzers . | . . . . . . . . . . . . . . Garrison Access 3 | . . . . . . 1 . . . 1 . . 1 Total Hacks 59 | . . 2 1 . 5 11 3 3 5 10 2 6 11 Successful 33 | . . 1 1 . 1 2 1 3 3 6 1 5 9 Failed 26 | . . 1 . . 4 9 2 . 2 4 1 1 2 Catastrophic 8 | . . . . . 1 1 1 . 1 2 . 1 1 Database Lockouts . | . . . . . . . . . . . . . . Manual 19 | . . . . . 4 2 . 1 5 3 2 . 2 Terminals 49 | . . 2 . . 5 4 3 3 5 9 2 6 10 Fabricators . | . . . . . . . . . . . . . . Repair Stations 6 | . . . . . . 6 . . . . . . . Recycling Units . | . . . . . . . . . . . . . . Scanalyzers . | . . . . . . . . . . . . . . Garrison Access 3 | . . . . . . 1 . . . 1 . . 1 Terminal Hacks 29 | . . 1 1 . 1 1 1 3 3 4 1 5 8 Record 5 | . . . 1 . . . . . . 1 . 3 . Open Door 4 | . . . . . . . . . . . . . 4 Level Access Points 3 | . . 1 . . . . . 1 1 . . . . Branch Access Points 1 | . . . . . . . . . . . 1 . . Repair Station Index 1 | . . . . . . 1 . . . . . . . Unreport Threat 3 | . . . . . . . . . . 2 . 1 . Locate Traps 2 | . . . . . . . . 1 . . . . 1 Dispatch Records 1 | . . . . . 1 . . . . . . . . Zone Layout 8 | . . . . . . . 1 1 2 1 . 1 2 Activate Exoskeleton 1 | . . . . . . . . . . . . . 1 Fabricator Hacks . | . . . . . . . . . . . . . . Repair Station Hacks 1 | . . . . . . 1 . . . . . . . Scan Component 1 | . . . . . . 1 . . . . . . . Recycling Unit Hacks . | . . . . . . . . . . . . . . Scanalyzer . | . . . . . . . . . . . . . . Garrison Access Hacks 2 | . . . . . . . . . . 1 . . 1 Seal Access 2 | . . . . . . . . . . 1 . . 1 Unauthorized Hacks 1 | . . . . . . . . . . 1 . . . Terminals 1 | . . . . . . . . . . 1 . . . Assimilate 1 | . . . . . . . . . . 1 . . . Fabricators . | . . . . . . . . . . . . . . Repair Stations . | . . . . . . . . . . . . . . Recycling Units . | . . . . . . . . . . . . . . Scanalyzers . | . . . . . . . . . . . . . . Garrison Access . | . . . . . . . . . . . . . . Data Cores Recovered 1 | . . . . . . . . . . . . . 1 Used . | . . . . . . . . . . . . . . Hacking Detections 19 | . . 1 . . 1 5 2 . 2 4 . 1 3 Full Trace Events 2 | . . . . . . 1 . . . 1 . . . Feedback Events . | . . . . . . . . . . . . . . Feedback Blocked . | . . . . . . . . . . . . . . Robot Schematics Acquired . | . . . . . . . . . . . . . . Robots Built . | . . . . . . . . . . . . . . Authchips . | . . . . . . . . . . . . . . Time . | . . . . . . . . . . . . . . Total Robot Build Rating . | . . . . . . . . . . . . . . Part Schematics Acquired . | . . . . . . . . . . . . . . Parts Built . | . . . . . . . . . . . . . . Authchips . | . . . . . . . . . . . . . . Time . | . . . . . . . . . . . . . . Total Part Build Rating . | . . . . . . . . . . . . . . Parts Repaired . | . . . . . . . . . . . . . . Time . | . . . . . . . . . . . . . . Parts Recycled . | . . . . . . . . . . . . . . Recycled Matter . | . . . . . . . . . . . . . . Retrieved Matter . | . . . . . . . . . . . . . . Retrieved Components . | . . . . . . . . . . . . . . Parts Scanalyzed . | . . . . . . . . . . . . . . Part Schematics Acquired . | . . . . . . . . . . . . . . Parts Damaged . | . . . . . . . . . . . . . . Bothacking | -11 -10 -10 -10 -9 -8 -7 -6 -5 -4 -3 -2 -2 -2 ------------ Run | Yrd Mat Min Exi Min Mat Fac Fac Fac Fac Res Res Qua Sec Used RIF Installer . | . . . . . . . . . . . . . . Robots Hacked . | . . . . . . . . . . . . . . Non-combat . | . . . . . . . . . . . . . . Combat . | . . . . . . . . . . . . . . Robot Hacks Applied . | . . . . . . . . . . . . . . Relay Couplers Released . | . . . . . . . . . . . . . . Fabnet Peak Effective % . | . . . . . . . . . . . . . . Robots Rewired . | . . . . . . . . . . . . . . Allies Hacked . | . . . . . . . . . . . . . . Hacks Repelled . | . . . . . . . . . . . . . . Allies | -11 -10 -10 -10 -9 -8 -7 -6 -5 -4 -3 -2 -2 -2 -------- Run | Yrd Mat Min Exi Min Mat Fac Fac Fac Fac Res Res Qua Sec Total Allies 3 | . . . . 2 . . . . . 1 . . . Largest Group 2 | . . . . 2 . . . . . 1 . . . Highest-Rated Group 45 | . . . . 42 . . . . . 45 . . . Highest-Rated Ally 45 | . . . . 31 . . . . . 45 . . . Total Orders 1 | . . . . . . . . . . . . 1 . EXPLORE 1 | . . . . . . . . . . . . 1 . Ally Attacks . | . . . . . . . . . . . . . . Total Damage . | . . . . . . . . . . . . . . Kills . | . . . . . . . . . . . . . . Allies Corrupted . | . . . . . . . . . . . . . . Allies Melted . | . . . . . . . . . . . . . . Intel | -11 -10 -10 -10 -9 -8 -7 -6 -5 -4 -3 -2 -2 -2 ------- Run | Yrd Mat Min Exi Min Mat Fac Fac Fac Fac Res Res Qua Sec Robot Analysis Total . | . . . . . . . . . . . . . . Derelict Logs Recovered 2 | . . 2 . . . . . . . . . . . Drone Launches 1 | . . . . . . . . . . . . 1 . Drone Recoveries . | . . . . . . . . . . . . . . Exploration | -11 -10 -10 -10 -9 -8 -7 -6 -5 -4 -3 -2 -2 -2 ------------- Run | Yrd Mat Min Exi Min Mat Fac Fac Fac Fac Res Res Qua Sec Turns Passed 3758 | . 146 201 165 92 582 276 262 213 148 709 254 175 535 Spaces Moved 5975 | 1 87 153 138 75 357 820 305 449 380 1459 505 324 922 Core . | . . . . . . . . . . . . . . Treads 53 | . . . . . 53 . . . . . . . . Legs 663 | 1 87 153 138 75 209 . . . . . . . . Wheels . | . . . . . . . . . . . . . . Hover . | . . . . . . . . . . . . . . Flight 5259 | . . . . . 95 820 305 449 380 1459 505 324 922 Fastest Speed 17 | 120 120 120 120 120 29 24 17 17 17 19 18 18 20 Average Speed 35 | 120 122 120 120 120 117 24 17 17 21 21 20 20 26 Slowest Speed 375 | 120 190 120 120 120 375 29 20 24 26 26 21 105 102 Overloaded Moves . | . . . . . . . . . . . . . . Propulsion Burnouts . | . . . . . . . . . . . . . . Robots Hopped 73 | . . . . . . 17 3 2 5 31 3 4 8 Cave-ins Triggered 1 | . . . . . . . . . . . . . 1 Exploration Rate (%) 30 | 2 15 40 49 31 42 35 13 16 17 40 22 44 59 Regions Visited 13 Branch Regions 5 Pre-discovered Areas 1 | . . . 1 . . . . . . . . . . Known Exits Taken 13 | 1 1 1 1 1 1 1 1 1 1 1 1 1 . Unknown Exits Taken . | . . . . . . . . . . . . . . Scrap Searched . | . . . . . . . . . . . . . . Spaces Dug 31 | . . . . . . . . 4 1 4 17 1 4 Terrain Destroyed 31 | . . . . . . . . 4 1 4 17 1 4 Melee 31 | . . . . . . . . 4 1 4 17 1 4 Projectile . | . . . . . . . . . . . . . . AOE . | . . . . . . . . . . . . . . Terrain Rammed . | . . . . . . . . . . . . . . Walls Destroyed . | . . . . . . . . . . . . . . Machines Disabled . | . . . . . . . . . . . . . . Actions | -11 -10 -10 -10 -9 -8 -7 -6 -5 -4 -3 -2 -2 -2 --------- Run | Yrd Mat Min Exi Min Mat Fac Fac Fac Fac Res Res Qua Sec Total 7302 | . 107 161 139 77 471 877 505 555 437 1794 604 424 1151 Wait 990 | . . 1 . 1 60 48 184 84 54 263 73 90 132 Move 5826 | . 86 152 137 74 356 786 298 444 370 1402 499 316 906 Hop 62 | . . . . . . 16 3 2 4 25 2 3 7 Pick Up 26 | . 2 . 1 1 . 2 3 2 . 8 1 1 5 Fast Attach 70 | . 6 . . . 11 9 4 2 3 12 4 7 12 Attach 21 | . . 1 . . . 3 1 . 1 3 3 1 8 Detach 5 | . . . . . . 2 . . . . . 2 1 Swap 23 | . 1 1 . . 7 2 3 . 2 6 . 1 . Drop 66 | . 1 . 1 1 14 7 6 3 2 21 1 2 7 Fire 50 | . 11 5 . . 23 2 . . . . . . 9 Melee 77 | . . . . . . . 3 14 1 18 21 1 19 Ram . | . . . . . . . . . . . . . . Kick 1 | . . 1 . . . . . . . . . . . Crush . | . . . . . . . . . . . . . . Escape Stasis 81 | . . . . . . . . . . 36 . . 45 Rewire 4 | . . . . . . . . 4 . . . . . Trap . | . . . . . . . . . . . . . . Miscellaneous . | . . . . . . . . . . . . . . Route ------- -11/Scrapyard -10/Materials -10/Mines (discovered 3 exits: Mat x2 / *Exi) -10/Exiles (discovered 2 exits: *Min x2) -9/Mines -8/Materials -7/Factory -6/Factory -5/Factory (discovered 5 exits: *Fac x4 / *Ext) -4/Factory (discovered 5 exits: *Res x4 / *Upp) -3/Research -2/Research (discovered 3 exits: *Acc / *Qua x2) -2/Quarantine (discovered 2 exits: *Acc / *Sec) -2/Section 7 (discovered 1 exit: *Acc) History --------- Turn | Location | Event 1 | -11/Scrapyard | Identified exit to Materials 1 | -11/Scrapyard | Discovered exit to Materials (range 0) 1 | -11/Scrapyard | Entered Materials 1 | -10/Materials | Evolved 1 slot: Propulsion x1 122 | -10/Materials | Identified exit to Mines 122 | -10/Materials | Discovered exit to Mines (range 7) 147 | -10/Materials | Entered Mines 195 | -10/Mines | Learned Materials terminal intel 295 | -10/Mines | Identified exit to Materials 311 | -10/Mines | Build established: Hacker-Mutant 339 | -10/Mines | Deemed a non-threat by the Exiles lab entrance 340 | -10/Mines | Identified exit to Exiles 340 | -10/Mines | Discovered exit to Exiles (range 5) 348 | -10/Mines | Entered Exiles 349 | -10/Exiles | Identified exit to Mines 383 | -10/Exiles | Met 8R-AWN 399 | -10/Exiles | Met EX-HEX 450 | -10/Exiles | Met EX-DEC 463 | -10/Exiles | Learned location of Zion (-6) 513 | -10/Exiles | Entered Mines 559 | -9/Mines | Found a damaged Exp. Sensor Array with a note attached 563 | -9/Mines | Found Prototype Device 600 | -9/Mines | Identified exit to Materials 600 | -9/Mines | Discovered exit to Materials (range 6) 605 | -9/Mines | Entered Materials 605 | -8/Materials | Evolved 4 slots: Propulsion x2, Utility x2 606 | -8/Materials | Loaded intel: 12 terminal locations 611 | -8/Materials | Found Prototype Launcher 611 | -8/Materials | Identified Rocket Array 1179 | -8/Materials | Identified exit to Factory 1179 | -8/Materials | Discovered exit to Factory (range 18) 1187 | -8/Materials | Entered Factory 1187 | -7/Factory | Evolved 2 slots: Utility x2 1188 | -7/Factory | Identified Exp. Sensor Array 1462 | -7/Factory | Identified exit to Factory 1462 | -7/Factory | Discovered exit to Factory (range 5) 1463 | -7/Factory | Entered another Factory area 1463 | -6/Factory | Evolved 2 slots: Propulsion x2 1573 | -6/Factory | Build established: Hacker-Scout 1722 | -6/Factory | Identified exit to Factory 1722 | -6/Factory | Discovered exit to Factory (range 10) 1725 | -6/Factory | Entered another Factory area 1725 | -5/Factory | Evolved 2 slots: Utility x2 1826 | -5/Factory | Identified exit to Factory 1924 | -5/Factory | Identified exit to Extension 1924 | -5/Factory | Discovered exit to Extension (range 16) 1938 | -5/Factory | Entered another Factory area 1938 | -4/Factory | Evolved 2 slots: Power x1, Utility x1 1964 | -4/Factory | Identified exit to Research 2016 | -4/Factory | Identified exit to Upper Caves 2016 | -4/Factory | Discovered exit to Upper Caves (range 8) 2086 | -4/Factory | Entered Research 2086 | -3/Research | Evolved 2 slots: Utility x2 2328 | -3/Research | Lost 3 parts (1p2n) 2404 | -3/Research | Found Prototype Device 2404 | -3/Research | Identified Exp. EM Disruption Field 2449 | -3/Research | Found Enh. Force Lance 2749 | -3/Research | Spotted B-86 Titan 2764 | -3/Research | Found Prototype Processor 2764 | -3/Research | Identified Exp. Target Analyzer 2794 | -3/Research | Identified exit to Research 2794 | -3/Research | Discovered exit to Research (range 8) 2795 | -3/Research | Entered another Research area 2795 | -2/Research | Evolved 2 slots: Propulsion x1, Utility x1 2800 | -2/Research | Identified exit to Quarantine 2930 | -2/Research | Spotted B-90 Cyclops 2968 | -2/Research | Lost 3 parts (1n2u) 2969 | -2/Research | Spotted B-90 Cyclops 2977 | -2/Research | Identified exit to Access 2977 | -2/Research | Discovered exit to Access (range 4) 3049 | -2/Research | Entered Quarantine 3051 | -2/Quarantine | Found Alien Artifact 3051 | -2/Quarantine | Identified Core Reset Matrix 3051 | -2/Quarantine | Used Core Reset Matrix 3055 | -2/Quarantine | Detected hypermatrix surge 3055 | -2/Quarantine | Sensed 15 artifacts in vicinity 3129 | -2/Quarantine | Found Transdimensional Reconstructor 3176 | -2/Quarantine | Discovered exit to Access (range 22) 3206 | -2/Quarantine | Spotted Fortress 3223 | -2/Quarantine | Identified exit to Section 7 3223 | -2/Quarantine | Discovered exit to Section 7 (range 6) 3224 | -2/Quarantine | Entered Section 7 3225 | -2/Section 7 | Sensed 21 artifacts in vicinity 3238 | -2/Section 7 | Discovered exit to Access (range 17) 3241 | -2/Section 7 | Spotted B-90 Cyclops 3374 | -2/Section 7 | Spotted Alpha 7 3405 | -2/Section 7 | Spotted Alpha 7 3417 | -2/Section 7 | Build established: Hacker-Ninja 3428 | -2/Section 7 | Spotted B-99 Colossus 3435 | -2/Section 7 | Spotted Executioner 3435 | -2/Section 7 | Spotted Executioner 3439 | -2/Section 7 | Found Transdimensional Reconstructor 3440 | -2/Section 7 | Found Transdimensional Reconstructor 3447 | -2/Section 7 | Found Matter Drive 3461 | -2/Section 7 | Spotted Striker 3481 | -2/Section 7 | Spotted Executioner 3481 | -2/Section 7 | Spotted Executioner 3563 | -2/Section 7 | Found Integrated Reactor 3563 | -2/Section 7 | Installed Integrated Reactor, increased core energy generation (+10) 3575 | -2/Section 7 | Found LRC Storage 3575 | -2/Section 7 | Installed LRC Storage, increased inventory capacity (+2) 3578 | -2/Section 7 | Lost 5 parts (2p3n) 3579 | -2/Section 7 | Found LRC Storage 3579 | -2/Section 7 | Installed LRC Storage, increased inventory capacity (+2) 3601 | -2/Section 7 | Found Core Expander 3601 | -2/Section 7 | Installed Core Expander, added new Propulsion slot 3602 | -2/Section 7 | Found Core Expander 3602 | -2/Section 7 | Installed Core Expander, added new Propulsion slot 3654 | -2/Section 7 | Lost 9 parts (3n4u2w) 3667 | -2/Section 7 | Found Terrabomb 3668 | -2/Section 7 | Found Terrabomb 3669 | -2/Section 7 | Found Terrabomb 3683 | -2/Section 7 | Used Terrabomb 3723 | -2/Section 7 | Spotted Striker 3727 | -2/Section 7 | Used Terrabomb 3727 | -2/Section 7 | Spotted Striker 3727 | -2/Section 7 | Spotted Striker 3732 | -2/Section 7 | Found Sigix Sheargun 3741 | -2/Section 7 | Core integrity fell below 50% 3744 | -2/Section 7 | Crushed by falling debris 3748 | -2/Section 7 | Found Sigix Shearcannon 3757 | -2/Section 7 | Destroyed Striker 3759 | -2/Section 7 | Self-destructed Last Messages --------------- 03744_ Adv. Transmission Jammer destroyed. 03745_ The unstable cave ceiling collapses. 03745_ Striker crushed by falling debris. 03745_ Striker system corrupted by crushing effect. 03746_ Striker system terminally corrupted. 03748_ Acquired Sigix Shearcannon. 03749_ Executioner springs to life. 03750_ Quantum Shear penetrates Striker. 03750_ Striker Prototype Protection severed. 03750_ Quantum Shear penetrates Striker. 03751_ Critical hit (Impale). 03752_ Imp. VTOL Module destroyed. 03755_ System corrupted: Sigix Shearcannon rejected. 03755_ Acquired Sigix Shearcannon. 03757_ Quantum Shear penetrates Striker. 03757_ Striker destroyed. 03757_ Quantum Shear penetrates Machine. 03758_ Penetrated by Slug. Map ----- +----------------------------------------------------+ | """""""""???""""#####"#? | | """""???"""""""" "## | | """"""???"""" # | | """""" "?"""""""" ;;" | | """""""??""""" ; ;%" | | "" """"""""?""""; ;; ;;" | | " """""""""""; ; %% | | """""""""""; ; %[; | | """"""""""; ; ; | | " " """""; ;; ;; | | " """""; ; ; | | """" ; ; | | "" ; ; # | | ""; ; ; | | % "; ; ;%# | | ;; ; ;# | | ; ; ; | | ;#; ; | | ;; ; ;; | | ""c ""; ; ; | | " % ""; ; w; | | """" "" ""; ; ;; | | ""??" ""; ; ; | | "???"" ""; ;;=;; | | ""??" ""; ;EEK; | | """" ""; ; K@; | | ""; ;"""; | | ""; ;;;;; | | ""; | | ""; | | ""; | | ; | | """" ;; | | "?" ; | | "?" ; | | ""?" ;; | | """" """; | | """; | | """"; ## | | """"; ###? | | """####???? | | """#??????? | | """#??????? | | """"#??????? | | """"""" """"#??????? | | """"""" """#??????? | | """"""" """???????? | | ###+++##############???????? | | """ """#?????????????????? | | """ """#?????????????????? | +----------------------------------------------------+ Best States ------------- Heat Dissipation 68 Energy Generation 37 Energy Capacity 240 Matter Stores 300 Matter Capacity 300 Sight Range 23 Robot Scan Range 20 Terrain Scan Range 20 Terrain Scan Density 210 Jamming Range 16 Base Temperature (-) 200 Resistance: KI 35 Resistance: TH 35 Resistance: EX 35 Resistance: EM 100 Resistance: I 35 Resistance: S 35 Resistance: P 35 Power Shielding 66 Weapon Shielding 33 Evasion (%) 73 Recoil Reduction 2 Offensive Hacking 34 Defensive Hacking 14 Item Schematics ----------------- None Robot Schematics ------------------ None Fabricated ------------ Nothing Alien Tech Used ----------------- Core Reset Matrix Matter Drive Integrated Reactor LRC Storage Core Expander Terrabomb Sigix Sheargun Sigix Shearcannon Achievements -------------- Alien Roots Nope Superinsulated Challenges ------------ None Game ------ Seed EnhancedNullAnalyzer Manual? 0 Play Time 01:13:40 Cumulative 84.7 hours Start 2024.06.09 @ 14:21:36 End 2024.06.09 @ 15:42:37 Sessions 1 Manual Loads 0 Difficulty Explorer Special Mode None Game No. 125 Rogue 40 Adventurer 79 Explorer 6 Win Type - Total 2 Types 2/0/0/0/0/0/0/0/0 Lore% 42 Gallery% 54 Achievement% 41 Wizard Run 0 Options --------- Layout 1 ASCII 0 Keyboard 0 Movement Numpad Keybinds 0 Fullscreen 2 Font 24/Smallcaps Map View 50x35 Zoom Use 0% Tactical HUD 1 Map Filters NONE Filters NONE Steam 1 RUN: e540284b-7da8-4bb6-a169-b30542f6a37c